fUSD/lending_fUSD_20251108
["ID","MTS","AMOUNT","RATE_DAILY","PERIOD"]
[393404921,1762600232372,-997.77385193,0.00016064,2]
[393404922,1762600232383,-594.60614807,0.00016064,2]
[393404923,1762600232393,-200.0,0.0001629,2]
[393404924,1762600232403,-1200.0,0.00016333,2]
[393404925,1762600232412,-1200.0,0.00016334,2]
[393404926,1762600232425,-300.0,0.00016334,2]
[393404927,1762600232435,-110.71906418,0.00016334,2]
[393404928,1762600232446,-189.28093582,0.00016334,2]
[393404929,1762600232456,-3513.32950418,0.00016336,2]
[393404930,1762600232467,-4619.33049582,0.00016336,2]
[393404931,1762600232477,-166.66,0.00016376,2]
[393404932,1762600232486,-944.03993803,0.00016435,2]
[393404933,1762600232495,-286.08,0.00016438,2]
[393404934,1762600232504,-1592.38,0.00016501,2]
[393404935,1762600232514,-4202.18,0.00016508,2]
[393404936,1762600232523,-166.66,0.00016699,2]
[393404937,1762600232532,-166.66,0.00016721,2]
[393404938,1762600232544,-350.0,0.0001676,2]
[393404939,1762600232556,-1000.0,0.00016761,2]
[393404940,1762600232567,-6894.0304,0.00016761,2]
[393404941,1762600232576,-951.2637,0.00016761,2]
[393404942,1762600232585,-1000.0,0.00016761,2]
[393404943,1762600232595,-2500.0,0.00016761,2]
[393404944,1762600232604,-374.06399445,0.0001677,2]
[393404945,1762600232613,-500.0,0.00016773,2]
[393404946,1762600232624,-23383.56441586,0.00016773,2]
[393404947,1762600232635,-18675.60773894,0.00016773,2]
[393404948,1762600232644,-610.0,0.00016803,2]
[393404949,1762600232653,-359.48001172,0.00016822,2]
[393404950,1762600232662,-151.0,0.00016851,2]
[393404951,1762600232672,-151.0,0.00016851,2]
[393404953,1762600232682,-151.0,0.00016851,2]
[393404955,1762600232691,-151.0,0.00016851,2]
[393404957,1762600232700,-151.0,0.00016851,2]
[393404959,1762600232709,-151.0,0.00016851,2]
[393404960,1762600232718,-151.0,0.00016851,2]
[393404961,1762600232727,-151.0,0.00016851,2]
[393404962,1762600232736,-151.0,0.00016851,2]
[393404963,1762600232745,-151.0,0.00016851,2]
[393404964,1762600232754,-151.0,0.00016851,2]
[393404965,1762600232764,-257.54438633,0.00016851,2]
[393404966,1762600232773,-151.0,0.00016851,2]
[393404967,1762600232782,-151.0,0.00016851,2]
[393404968,1762600232792,-151.0,0.00016851,2]
[393404969,1762600232801,-151.0,0.00016851,2]
[393404970,1762600232810,-151.0,0.00016851,2]
[393404971,1762600232823,-151.0,0.00016851,2]
[393404972,1762600232833,-151.0,0.00016851,2]
[393404973,1762600232842,-151.0,0.00016851,2]
[393404974,1762600232852,-151.0,0.00016851,2]
[393404975,1762600232859,-151.0,0.00016851,2]
[393404976,1762600232868,-151.0,0.00016851,2]
[393404977,1762600232878,-151.0,0.00016851,2]
[393404978,1762600232887,-151.0,0.00016851,2]
[393404979,1762600232897,-151.0,0.00016851,2]
[393404980,1762600232907,-151.0,0.00016851,2]
[393404981,1762600232916,-522.73,0.00016851,2]
[393404982,1762600232925,-151.0,0.00016858,2]
[393404983,1762600232935,-500.0,0.0001686,2]
[393404984,1762600232945,-500.0,0.0001686,2]
[393404985,1762600232954,-500.0,0.0001686,2]
[393404986,1762600232964,-500.0,0.0001686,2]
[393404987,1762600232973,-500.0,0.0001686,2]
[393404988,1762600232983,-216.0198199,0.0001686,2]
[393404989,1762600232992,-500.0,0.0001686,2]
[393404990,1762600233002,-500.0,0.0001686,2]
[393404991,1762600233012,-500.0,0.0001686,2]
[393404992,1762600233021,-500.0,0.0001686,2]
[393404993,1762600233031,-500.0,0.0001686,2]
[393404994,1762600233040,-500.0,0.0001686,2]
[393404995,1762600233049,-500.0,0.0001686,2]
[393404996,1762600233059,-500.0,0.0001686,2]
[393404997,1762600233068,-500.0,0.0001686,2]
[393404998,1762600233077,-500.0,0.0001686,2]
[393404999,1762600233087,-500.0,0.0001686,2]
[393405000,1762600233096,-500.0,0.0001686,2]
[393405001,1762600233105,-500.0,0.0001686,2]
[393405002,1762600233115,-500.0,0.0001686,2]
[393405003,1762600233124,-500.0,0.0001686,2]
[393405004,1762600233134,-500.0,0.0001686,2]
[393405005,1762600233144,-500.0,0.0001686,2]
[393405006,1762600233153,-500.0,0.0001686,2]
[393405007,1762600233163,-500.0,0.0001686,2]
[393405008,1762600233172,-500.0,0.0001686,2]
[393405009,1762600233182,-500.0,0.0001686,2]
[393405010,1762600233193,-500.0,0.0001686,2]
[393405011,1762600233204,-500.0,0.0001686,2]
[393405012,1762600233214,-327.7394853,0.0001686,2]
[393405013,1762600233223,-500.0,0.0001686,2]
[393405014,1762600233234,-500.0,0.0001686,2]
[393405015,1762600233243,-500.0,0.0001686,2]
[393405016,1762600233252,-500.0,0.0001686,2]
[393405017,1762600233262,-500.0,0.0001686,2]
[393405018,1762600233272,-500.0,0.0001686,2]
[393405019,1762600233281,-500.0,0.0001686,2]
[393405020,1762600233290,-500.0,0.0001686,2]
[393405021,1762600233300,-500.0,0.0001686,2]
[393405022,1762600233309,-500.0,0.0001686,2]
[393405023,1762600233319,-500.0,0.0001686,2]
[393405024,1762600233328,-500.0,0.0001686,2]
[393405025,1762600233339,-500.0,0.0001686,2]
[393405026,1762600233348,-500.0,0.0001686,2]
[393405027,1762600233358,-500.0,0.0001686,2]
[393405028,1762600233368,-500.0,0.0001686,2]
[393405029,1762600233377,-500.0,0.0001686,2]
[393405030,1762600233386,-500.0,0.0001686,2]
[393405031,1762600233397,-500.0,0.0001686,2]
[393405032,1762600233407,-500.0,0.0001686,2]
[393405033,1762600233416,-500.0,0.0001686,2]
[393405034,1762600233426,-500.0,0.0001686,2]
[393405035,1762600233435,-500.0,0.0001686,2]
[393405036,1762600233445,-479.974818,0.0001686,2]
[393405037,1762600233455,-500.0,0.0001686,2]
[393405038,1762600233465,-500.0,0.0001686,2]
[393405039,1762600233474,-500.0,0.0001686,2]
[393405040,1762600233483,-500.0,0.0001686,2]
[393405041,1762600233493,-500.0,0.0001686,2]
[393405042,1762600233503,-500.0,0.0001686,2]
[393405043,1762600233512,-500.0,0.0001686,2]
[393405044,1762600233521,-499.99999999,0.0001686,2]
[393405045,1762600233531,-500.0,0.0001686,2]
[393405046,1762600233540,-624.06295805,0.0001686,2]
[393405047,1762600233552,-500.0,0.0001686,2]
[393405048,1762600233562,-500.0,0.0001686,2]
[393405049,1762600233572,-500.0,0.0001686,2]
[393405050,1762600233581,-4843.58916895,0.0001686,2]
[393405051,1762600233591,-500.0,0.0001686,2]
[393405052,1762600233601,-500.0,0.0001686,2]
[393405053,1762600233611,-500.0,0.0001686,2]
[393405054,1762600233620,-500.0,0.0001686,2]
[393405055,1762600233631,-500.0,0.0001686,2]
[393405056,1762600233640,-631.36940064,0.0001686,2]
[393405057,1762600233649,-500.0,0.0001686,2]
[393405058,1762600233659,-500.0,0.0001686,2]
[393405059,1762600233669,-500.0,0.0001686,2]
[393405060,1762600233679,-272766.60595988,0.00016861,2]
[393405061,1762600233803,-1515.00684012,0.00016861,2]
[393405062,1762600233813,-500.0,0.00016873,2]
[393405063,1762600233823,-500.0,0.00016873,2]
[393405064,1762600233832,-500.0,0.00016873,2]
[393405065,1762600233841,-500.0,0.00016873,2]
[393405066,1762600233851,-500.0,0.00016873,2]
[393405067,1762600233860,-500.0,0.00016873,2]
[393405068,1762600233869,-500.0,0.00016873,2]
[393405069,1762600233879,-173.61550115,0.00016873,2]
[393405070,1762600233888,-500.0,0.00016873,2]
[393405071,1762600233898,-290.90535112,0.00016873,2]
[393405072,1762600233907,-349.30178506,0.00016873,2]
[393405073,1762600233916,-500.0,0.00016873,2]
[393405074,1762600233925,-500.0,0.00016873,2]
[393405075,1762600233944,-500.0,0.00016873,2]
[393405076,1762600233956,-500.0,0.00016873,2]
[393405077,1762600233965,-500.0,0.00016873,2]
[393405078,1762600233975,-500.0,0.00016873,2]
[393405079,1762600233984,-151.0,0.00016919,2]
[393405080,1762600233994,-500.0,0.00016921,2]
[393405081,1762600234004,-275.87075271,0.00016921,2]
[393405082,1762600234013,-186.01361056,0.00016921,2]
[393405083,1762600234023,-500.0,0.00016921,2]
[393405084,1762600234032,-2375.37,0.00016922,2]
[393405085,1762600234042,-508.76,0.00016922,2]
[393405086,1762600234051,-150.99,0.00016922,2]
[393405087,1762600234061,-5511.07580039,0.00016922,2]
[393405088,1762600234074,-2122.40419961,0.00016922,2]
[393405089,1762600234084,-1818.29,0.00016922,2]
[393405090,1762600234094,-9999.99,0.00016922,2]
[393405091,1762600234103,-9999.99,0.00016922,2]
[393405092,1762600234113,-421.38,0.00016922,2]
[393405093,1762600234123,-9999.99,0.00016922,2]
[393405094,1762600234132,-1822.68,0.00016922,2]
[393405095,1762600234142,-9999.99,0.00016922,2]
[393405096,1762600234152,-7873.45544378,0.00016922,2]
[393405097,1762600234163,-2045.33315918,0.00016922,2]
[393405098,1762600234175,-81.20139704,0.00016922,2]
[393405099,1762600234185,-999.99,0.00016922,2]
[393405100,1762600234195,-150.99,0.00016922,2]
[393405101,1762600234205,-134.04860296,0.00016922,4]
[393405102,1762600234216,-165.94139704,0.00016922,4]
[393405103,1762600234226,-1738.69635748,0.00016922,2]
[393405104,1762600234237,-515.28991249,0.00016922,2]
[393405110,1762600237371,-4735.16702506,0.00016922,2]
[393405111,1762600237383,-3010.83670497,0.00016922,2]
[393405112,1762600237392,-1592.38,0.00016938,2]
[393405113,1762600237402,-500.0,0.00016973,2]
[393405114,1762600237411,-500.0,0.00016973,2]
[393405115,1762600237421,-503.51222161,0.00016973,2]
[393405116,1762600237431,-500.0,0.00016973,2]
[393405117,1762600237440,-504.69553816,0.00016973,2]
[393405118,1762600237450,-500.0,0.00016973,2]
[393405119,1762600237459,-166.66,0.00017065,2]
[393405120,1762600237469,-522.73,0.00017125,2]
[393405121,1762600237479,-166.66,0.0001725,2]
[393405122,1762600237488,-207.73,0.00017284,2]
[393405123,1762600237503,-196.47158025,0.00017325,2]
[393405124,1762600237512,-746.44860371,0.00017332,2]
[393405125,1762600237522,-522.73,0.00017399,2]
[393405126,1762600237532,-166.66,0.0001741,2]
[393405127,1762600237543,-5107.87,0.0001741,2]
[393405128,1762600237556,-500.0,0.00017421,2]
[393405129,1762600237565,-500.0,0.00017421,2]
[393405130,1762600237575,-506.27473026,0.00017421,2]
[393405131,1762600237586,-250.0,0.00017502,2]
[393405132,1762600237596,-2500.0,0.00017502,2]
[393405133,1762600237606,-500.0,0.00017521,2]
[393405134,1762600237615,-12691.5581836,0.0001753,2]
[393405135,1762600237626,-3169.3083053,0.00017556,2]
[393405136,1762600237637,-592.984,0.0001762,2]
[393405137,1762600237646,-250.0,0.00017633,2]
[393405138,1762600237656,-522.73,0.00017673,2]
[393405139,1762600237669,-166.66,0.00017755,2]
[393405141,1762600237679,-500.0,0.0001777,2]
[393405142,1762600237688,-500.0,0.0001777,2]
[393405144,1762600237698,-500.0,0.0001777,2]
[393405146,1762600237707,-500.0,0.0001777,2]
[393405147,1762600237717,-500.0,0.0001777,2]
[393405148,1762600237727,-500.0,0.0001777,2]
[393405149,1762600237736,-500.0,0.0001777,2]
[393405150,1762600237746,-500.0,0.0001777,2]
[393405151,1762600237755,-432.78038,0.00017773,2]
[393405152,1762600237765,-379.94568324,0.00017773,2]
[393405153,1762600237775,-503.66483378,0.00017773,2]
[393405154,1762600237784,-500.0,0.00017799,2]
[393405155,1762600237793,-500.0,0.00017799,2]
[393405156,1762600237804,-200.0,0.000178,2]
[393405157,1762600237813,-200.0,0.000178,2]
[393405158,1762600237824,-200.0,0.000178,2]
[393405159,1762600237833,-257.25758624,0.000178,2]
[393405160,1762600237843,-230.34646382,0.000178,2]
[393405161,1762600237853,-166.66,0.00017801,2]
[393405162,1762600237866,-965.0,0.00017852,2]
[393405163,1762600237876,-420.0,0.00017852,2]
[393405164,1762600237886,-420.0,0.00017852,2]
[393405165,1762600237895,-1680.0,0.00017941,2]
[393405166,1762600237905,-522.78,0.00017947,2]
[393405167,1762600237914,-1000.0,0.00017972,2]
[393405168,1762600237923,-200.0,0.00017978,2]
[393405169,1762600237933,-200.0,0.00017978,2]
[393405170,1762600237943,-200.0,0.00017978,2]
[393405171,1762600237953,-150.0,0.00017989,2]
[393405172,1762600237963,-150.0,0.00017989,2]
[393405173,1762600237972,-213.09177718,0.00017989,2]
[393405174,1762600237982,-150.0,0.00017989,2]
[393405175,1762600237992,-227.45604997,0.00017989,2]
[393405176,1762600238001,-150.0,0.00017989,2]
[393405177,1762600238010,-150.0,0.00017989,2]
[393405178,1762600238020,-150.0,0.00017989,2]
[393405179,1762600238029,-150.0,0.00017989,2]
[393405180,1762600238039,-158.74312142,0.00017989,2]
[393405181,1762600238049,-159.17244427,0.00017989,2]
[393405182,1762600238063,-156.38165633,0.00017989,2]
[393405183,1762600238072,-150.0,0.00017989,2]
[393405184,1762600238083,-150.0,0.00017989,2]
[393405185,1762600238093,-150.0,0.00017989,2]
[393405186,1762600238105,-296.92453983,0.00017989,2]
[393405187,1762600238116,-150.0,0.00017989,2]
[393405188,1762600238126,-150.0,0.00017989,2]
[393405189,1762600238137,-500.0,0.00017989,2]
[393405190,1762600238147,-150.0,0.00017989,2]
[393405191,1762600238156,-150.0,0.00017989,2]
[393405192,1762600238166,-150.0,0.00017989,2]
[393405193,1762600238176,-150.0,0.00017989,2]
[393405194,1762600238186,-153.00042729,0.00017989,2]
[393405195,1762600238196,-150.0,0.00017989,2]
[393405196,1762600238207,-150.0,0.00017989,2]
[393405197,1762600238216,-150.0,0.00017989,2]
[393405198,1762600238226,-150.0,0.00017989,2]
[393405199,1762600238235,-500.0,0.00017989,2]
[393405200,1762600238244,-150.0,0.00017989,2]
[393405201,1762600238261,-150.0,0.00017989,2]
[393405202,1762600238271,-150.0,0.00017989,2]
[393405203,1762600238281,-150.0,0.00017989,2]
[393405204,1762600238291,-236.93449903,0.00017989,2]
[393405205,1762600238302,-500.0,0.00017989,2]
[393405206,1762600238312,-150.0,0.00017989,2]
[393405207,1762600238322,-150.0,0.00017989,2]
[393405208,1762600238331,-500.0,0.00017989,2]
[393405209,1762600238341,-150.0,0.00017989,2]
[393405210,1762600238351,-200.0,0.00017989,2]
[393405211,1762600238360,-150.0,0.00017989,2]
[393405212,1762600238370,-150.0,0.00017989,2]
[393405213,1762600238380,-150.0,0.00017989,2]
[393405214,1762600238389,-1000.0,0.00018034,2]
[393405215,1762600238399,-2064.94,0.00018039,2]
[393405216,1762600238618,-330.9236167,0.00018042,2]
[393405217,1762600238630,-500.0,0.00018058,2]
[393405218,1762600238641,-155.25322022,0.00018058,2]
[393405219,1762600238651,-501.2123909,0.00018089,2]
[393405220,1762600238664,-427.18736711,0.00018089,2]
[393405221,1762600238674,-166.66,0.000181,2]
[393405222,1762600238684,-266.96082948,0.00018126,2]
[393405223,1762600238694,-158.10520821,0.00018126,2]
[393405224,1762600238704,-150.0,0.00018126,2]
[393405225,1762600238714,-150.0,0.00018126,2]
[393405226,1762600238724,-150.0,0.00018126,2]
[393405227,1762600238733,-155.73974734,0.00018126,2]
[393405228,1762600238743,-150.0,0.00018126,2]
[393405229,1762600238753,-155.28552746,0.00018126,2]
[393405230,1762600238762,-218.97846183,0.00018126,2]
[393405231,1762600238771,-500.0,0.00018126,2]
[393405232,1762600238781,-150.4240917,0.00018126,2]
[393405233,1762600238791,-150.0,0.00018126,2]
[393405234,1762600238800,-150.0,0.00018126,2]
[393405235,1762600238810,-150.0,0.00018126,2]
[393405236,1762600238820,-535.0,0.00018126,2]
[393405237,1762600238830,-150.0,0.00018126,2]
[393405238,1762600238840,-150.0,0.00018126,2]
[393405239,1762600238850,-150.0,0.00018126,2]
[393405240,1762600238859,-150.0,0.00018126,2]
[393405241,1762600238870,-500.0,0.00018126,2]
[393405242,1762600238880,-150.0,0.00018126,2]
[393405243,1762600238890,-500.0,0.00018126,2]
[393405244,1762600238899,-150.0,0.00018126,2]
[393405245,1762600238909,-150.0,0.00018126,2]
[393405246,1762600238918,-500.0,0.00018153,2]
[393405247,1762600238928,-280.37541257,0.00018153,2]
[393405248,1762600238938,-200.0,0.00018158,2]
[393405249,1762600238959,-200.0,0.00018158,2]
[393405250,1762600238971,-200.0,0.00018158,2]
[393405251,1762600238982,-150.0,0.00018263,2]
[393405252,1762600238993,-500.0,0.00018263,2]
[393405253,1762600239003,-150.0,0.00018263,2]
[393405254,1762600239015,-150.0,0.00018263,2]
[393405255,1762600239026,-150.0,0.00018263,2]
[393405256,1762600239037,-200.0,0.00018263,2]
[393405257,1762600239047,-150.0,0.00018263,2]
[393405258,1762600239057,-222.15544408,0.00018263,2]
[393405259,1762600239068,-150.0,0.00018263,2]
[393405260,1762600239078,-500.0,0.00018263,2]
[393405261,1762600239088,-200.0,0.00018263,2]
[393405262,1762600239099,-200.0,0.00018263,2]
[393405263,1762600239109,-200.0,0.00018339,2]
[393405264,1762600239119,-200.0,0.00018339,2]
[393405265,1762600239129,-200.0,0.00018339,2]
[393405266,1762600239141,-176.21,0.00018343,2]
[393405267,1762600239151,-166.66,0.00018352,2]
[393405268,1762600239161,-10956.86,0.00018375,2]
[393405269,1762600239171,-200.0,0.000184,2]
[393405270,1762600239182,-500.0,0.000184,2]
[393405271,1762600239192,-150.0,0.000184,2]
[393405272,1762600239202,-200.0,0.000184,2]
[393405273,1762600239214,-150.0,0.000184,2]
[393405274,1762600239224,-150.0,0.000184,2]
[393405275,1762600239235,-213.05879372,0.000184,2]
[393405276,1762600239245,-500.0,0.000184,2]
[393405277,1762600239258,-31837.73584181,0.00018405,2]
[393405278,1762600239268,-569.0,0.00018466,2]
[393405279,1762600239279,-200.0,0.00018523,2]
[393405280,1762600239289,-200.0,0.00018523,2]
[393405282,1762600239300,-200.0,0.00018523,2]
[393405284,1762600239315,-585.0,0.00018525,2]
[393405287,1762600239325,-500.0,0.00018537,2]
[393405289,1762600239336,-150.0,0.00018537,2]
[393405291,1762600239347,-150.0,0.00018537,2]
[393405292,1762600239359,-150.0,0.00018537,2]
[393405293,1762600239371,-500.0,0.00018537,2]
[393405294,1762600239381,-500.0,0.00018603,2]
[393405295,1762600239393,-1000.0,0.00018606,2]
[393405296,1762600239405,-592.984,0.0001862,2]
[393405297,1762600239416,-1000.0,0.00018658,2]
[393405298,1762600239427,-500.0,0.00018674,2]
[393405299,1762600239438,-250.0,0.00018674,2]
[393405300,1762600239450,-250.0,0.00018674,2]
[393405301,1762600239461,-245.0,0.00018674,2]
[393405302,1762600239472,-328.38259742,0.00018674,2]
[393405303,1762600239482,-581.3806178,0.00018811,2]
[393405304,1762600239493,-166.66,0.00018903,2]
[393405305,1762600239503,-332.92792874,0.00019154,2]
[393405306,1762600239513,-2000.0,0.000192,2]
[393405307,1762600239524,-294.58035796,0.00019228,2]
[393405308,1762600239533,-17787.99665856,0.00019231,2]
[393405309,1762600239559,-778.40756679,0.00019231,2]
[393405310,1762600239629,-1083.81940273,0.00019231,2]
[393405311,1762600239714,-3733.34078774,0.00019231,2]
[393405312,1762600239725,-18675.6077389,0.00019231,2]
[393405313,1762600239735,-359.48001169,0.00019275,2]
[393405314,1762600239746,-1000.0,0.00019358,2]
[393405315,1762600239755,-571.70390866,0.0001939,2]
[393405316,1762600239765,-300.0,0.00019409,2]
[393405317,1762600239776,-166.66,0.00019455,2]
[393405318,1762600239786,-587.0,0.00019512,2]
[393405319,1762600239796,-587.0,0.00019512,2]
[393405321,1762600239805,-592.984,0.0001962,2]
[393405323,1762600239814,-2351.0,0.00019707,2]
[393405325,1762600239827,-173.12,0.0001971,2]
[393405327,1762600239838,-374.06399441,0.00019931,2]
[393405329,1762600239848,-2657.28406272,0.0002,2]
[393405331,1762600239858,-1000.0,0.00020038,2]
[393405333,1762600239868,-1000.0,0.00020057,2]
[393405335,1762600239878,-530.05,0.00020187,2]
[393405337,1762600239888,-478.09862864,0.00020206,2]
[393405340,1762600239903,-592.98401,0.0002062,2]
[393405341,1762600239913,-1000.0,0.00020757,2]
[393405343,1762600239923,-300.0,0.00020779,2]
[393405344,1762600239933,-2506.61,0.0002087,2]
[393405345,1762600239943,-500.0,0.00020949,2]
[393405346,1762600239954,-2831.86941,0.00021039,2]
[393405347,1762600239963,-823.0,0.00021326,2]
[393405348,1762600239973,-1000.0,0.00021457,2]
[393405349,1762600239983,-592.984,0.0002162,2]
[393405350,1762600239993,-2054.0,0.00021646,2]
[393405351,1762600240003,-22488.93705853,0.00021689,2]
[393405352,1762600240015,-853.36944476,0.00021689,2]
[393405353,1762600240027,-41.25791253,0.00021689,2]
[393405354,1762600240036,-1001.32308747,0.00021689,2]
[393405355,1762600240048,-2172.9,0.00021689,2]
[393405356,1762600240060,-608.41177947,0.00021689,2]
[393405363,1762600242479,-257.25758624,0.00019512,2]
[393405364,1762600242489,-144.61121645,0.00021689,2]
[393405365,1762600242500,-572.15544408,0.00021689,2]
[393405371,1762600245621,-14176.20621143,0.00021689,2]
[393405372,1762600245632,-359.48001169,0.00021727,2]
[393405373,1762600245642,-631.8754749,0.00021822,2]
[393405374,1762600245652,-173.12,0.000219,2]
[393405375,1762600245662,-157.7905692,0.00021968,2]
[393405376,1762600245672,-2142.0,0.00022004,2]
[393405377,1762600245682,-418.536,0.00022004,2]
[393405378,1762600245691,-1188.0,0.00022004,2]
[393405379,1762600245701,-1000.0,0.00022042,2]
[393405380,1762600245710,-574.0,0.00022092,2]
[393405381,1762600245719,-1316.0,0.00022092,2]
[393405382,1762600245729,-607.0,0.00022092,2]
[393405383,1762600245739,-820.0,0.00022092,2]
[393405384,1762600245749,-1525.021,0.00022092,2]
[393405385,1762600245758,-540.84,0.00022463,2]
[393405386,1762600245767,-525.82294279,0.00022463,2]
[393405387,1762600245777,-4556.37,0.00022562,2]
[393405388,1762600245787,-592.984,0.0002262,2]
[393405389,1762600245797,-500.0,0.00022869,2]
[393405390,1762600245806,-8132.66,0.0002287,2]
[393405391,1762600245816,-2000.0,0.000229,2]
[393405392,1762600245825,-153.88,0.00023085,2]
[393405393,1762600245835,-374.06399441,0.00023092,2]
[393405394,1762600245845,-843.0,0.00023308,2]
[393405395,1762600245855,-1152.0,0.00023308,2]
[393405396,1762600245865,-207.73,0.00023762,2]
[393405397,1762600245875,-1500.0,0.000239,8]
[393405398,1762600245884,-1000.0,0.00024045,2]
[393405399,1762600245894,-173.12,0.0002409,2]
[393405400,1762600245904,-151.0,0.00024147,7]
[393405401,1762600245913,-151.0,0.00024147,7]
[393405402,1762600245922,-151.0,0.00024147,7]
[393405403,1762600245931,-151.0,0.00024147,7]
[393405404,1762600245941,-23383.56441582,0.00024147,2]
[393405405,1762600245950,-1362.53214936,0.00024147,2]
[393405406,1762600245961,-773.43815476,0.00024147,2]
[393405415,1762600839413,1000.0,0.00038994,120]
[393405416,1762601041722,-467.808836,0.00016342,2]
[393405417,1762601041751,-250.0,0.00016383,2]
[393405418,1762601041778,-602.11460095,0.00016424,2]
[393405419,1762601041804,-174.72243568,0.00016524,2]
[393405420,1762601041988,-300.0,0.00016658,2]
[393405421,1762601042305,-5335.17965037,0.00016659,2]
[393405422,1762601044706,-1261.76408088,0.00016659,2]
[393405423,1762601044730,-7476.48183824,0.00016659,2]
[393405424,1762601044860,-233.78999655,0.0001666,2]
[393405425,1762601044894,-500.0,0.00016672,2]
[393405426,1762601044927,-500.0,0.00016672,2]
[393405427,1762601044959,-500.0,0.00016672,2]
[393405428,1762601044990,-500.0,0.00016672,2]
[393405429,1762601045022,-219.59946379,0.00016672,2]
[393405430,1762601045053,-500.0,0.00016672,2]
[393405431,1762601045085,-500.0,0.00016672,2]
[393405432,1762601045119,-500.0,0.00016672,2]
[393405433,1762601045148,-500.0,0.00016672,2]
[393405434,1762601045177,-319.95081928,0.00016672,2]
[393405435,1762601045270,-500.0,0.00016672,2]
[393405436,1762601045299,-500.0,0.00016672,2]
[393405437,1762601045327,-550.0,0.00016672,2]
[393405438,1762601045909,-192.802366,0.00016673,2]
[393405439,1762601046330,195.0,0.00016672,2]
[393405440,1762601047284,271.72820284,0.00016659,2]
[393405441,1762601047914,-218.06726765,0.00016673,2]
[393405442,1762601050669,-89.13036635,0.00016673,2]
[393405443,1762601050692,-109.10865674,0.00016673,2]
[393405444,1762601053018,-322.85329158,0.00016673,2]
[393405445,1762601055579,-159.0356435,0.00016673,2]
[393405446,1762601057623,-250.0,0.00016673,2]
[393405447,1762601058696,301.038,0.00016589,2]
[393405448,1762601059165,-195.0,0.00016673,2]
[393405449,1762601061416,500.0,0.00016672,2]
[393405450,1762601071559,389.80434043,0.00016672,2]
[393405451,1762601071840,500.0,0.00016672,2]
[393405452,1762601071894,292.87887573,0.00016672,2]
[393405453,1762601072032,-1036.01759182,0.00016673,2]
[393405454,1762601072112,-5477.52539736,0.00016673,2]
[393405455,1762601072150,-2450.449419,0.00016673,2]
[393405456,1762601072186,-5099.111162,0.00016673,2]
[393405457,1762601072277,-4900.878838,0.00016673,2]
[393405458,1762601072315,-198.252324,0.00016673,2]
[393405459,1762601072404,-198.272324,0.00016673,2]
[393405460,1762601072428,-9603.465352,0.00016673,2]
[393405461,1762601072525,-1427.6,0.00016673,2]
[393405462,1762601072553,-2338.39,0.00016673,2]
[393405463,1762601072588,-2468.03,0.00016673,2]
[393405464,1762601075279,-150.99,0.00016673,2]
[393405465,1762601075316,-999.99,0.00016673,2]
[393405466,1762601075349,-150.99,0.00016673,2]
[393405467,1762601075418,-7396.07,0.00016673,2]
[393405468,1762601081025,-591.0062,0.00016573,2]
[393405469,1762601081061,-2603.92,0.00016673,2]